bitfinex-derivatives/quotes_BTCF0:USTF0_20251023
["timestamp","ask_amount","ask_price","bid_price","bid_amount"]
[1761230604823,0.1346133,109590.0,109580.0,0.18453467]
[1761230605024,0.04339,109590.0,109580.0,0.23053467]
[1761230605337,0.02108,109590.0,109580.0,0.23053467]
[1761230605628,0.35730579,109600.0,109590.0,0.1341633]
[1761230605831,0.426685,109600.0,109590.0,0.1741633]
[1761230607024,0.426685,109600.0,109590.0,0.1341633]
[1761230607219,0.74060079,109600.0,109590.0,0.04294]
[1761230607422,0.0912233,109590.0,109580.0,0.18054047]
[1761230607626,0.44852909,109590.0,109580.0,0.18054047]
[1761230607833,0.44852909,109590.0,109580.0,0.18454047]
[1761230608022,0.1346133,109590.0,109580.0,0.18454047]
[1761230608433,0.1346133,109590.0,109580.0,0.18054047]
[1761230609027,0.44852909,109590.0,109580.0,0.09330897]
[1761230609331,0.44852909,109590.0,109580.0,0.1602152]
[1761230610231,0.44852909,109590.0,109580.0,0.0700836]
[1761230610533,0.44859699,109590.0,109580.0,0.1613152]
[1761230611226,0.44859699,109590.0,109580.0,0.0700836]
[1761230611420,6.79e-05,109590.0,109580.0,0.1613152]
[1761230611621,0.1140512,109590.0,109580.0,0.2113152]
[1761230611818,0.1351812,109590.0,109580.0,0.2113152]
[1761230612034,0.1351812,109590.0,109580.0,0.1613152]
[1761230612229,0.44909699,109590.0,109580.0,0.2113152]
[1761230612431,0.44909699,109590.0,109580.0,0.1613152]
[1761230613223,0.44909699,109590.0,109580.0,0.0564936]
[1761230614030,0.44909699,109590.0,109580.0,0.1613152]
[1761230614223,0.1351812,109590.0,109580.0,0.1613152]
[1761230614418,0.44909699,109590.0,109580.0,0.18564057]
[1761230614622,0.44909699,109590.0,109580.0,0.18164057]
[1761230616033,0.03300526,109590.0,109580.0,0.24541238]
[1761230616233,0.12422856,109590.0,109580.0,0.22807891]
[1761230616629,0.12422856,109590.0,109580.0,0.27807891]
[1761230617030,0.12430233,109590.0,109580.0,0.27807891]
[1761230617328,0.43821812,109590.0,109580.0,0.27807891]
[1761230618130,0.12430233,109590.0,109580.0,0.27807891]
[1761230618332,0.12430233,109590.0,109580.0,0.19541238]
[1761230619023,0.43821812,109590.0,109580.0,0.19541238]
[1761230620334,0.43821812,109590.0,109580.0,0.22807891]
[1761230621034,0.43821812,109590.0,109580.0,0.04716078]
[1761230621228,0.43821812,109590.0,109580.0,0.13839238]
[1761230621437,0.43821812,109590.0,109580.0,0.21541891]
[1761230621630,0.43821812,109590.0,109580.0,0.11968638]
[1761230621830,0.01194903,109590.0,109580.0,0.27450798]
[1761230622134,7.377e-05,109590.0,109580.0,0.39018261]
[1761230622333,7.377e-05,109590.0,109580.0,0.4391824]
[1761230622542,0.461787,109600.0,109590.0,0.1491733]
[1761230622837,0.461787,109600.0,109590.0,0.19562456]
[1761230623432,0.77570279,109600.0,109590.0,0.48562456]
[1761230623632,0.1350966,109610.0,109600.0,0.1355749]
[1761230623832,0.1350966,109610.0,109600.0,0.20654445]
[1761230624039,0.1350966,109610.0,109600.0,0.24654445]
[1761230624631,0.04389,109610.0,109600.0,0.27102595]
[1761230625041,0.7757444,109620.0,109610.0,0.0912066]
[1761230625234,0.7757444,109620.0,109610.0,0.11533728]
[1761230625435,0.7885044,109620.0,109610.0,0.03828844]
[1761230626134,0.77755362,109620.0,109610.0,0.03828844]
[1761230626730,0.77855362,109620.0,109610.0,0.03828844]
[1761230627328,1.17855362,109620.0,109610.0,0.03828844]
[1761230627642,1.23560282,109620.0,109610.0,0.01377181]
[1761230627836,1.21112782,109620.0,109610.0,0.01377181]
[1761230628046,1.26007692,109620.0,109610.0,0.01377181]
[1761230628238,0.135105,109600.0,109590.0,0.06887663]
[1761230628434,0.7864655,109600.0,109590.0,0.06887663]
[1761230629232,0.7864655,109600.0,109590.0,0.0689078]
[1761230629433,0.7864655,109600.0,109590.0,0.0245478]
[1761230629832,0.7757955,109600.0,109590.0,0.0729078]
[1761230630035,0.461785,109600.0,109590.0,0.164131]
[1761230630233,0.461785,109600.0,109590.0,0.0507178]
[1761230630234,0.7864655,109600.0,109590.0,0.0507178]
[1761230630439,0.7864655,109600.0,109590.0,0.0285478]
[1761230631438,0.7864655,109600.0,109590.0,0.0245478]
[1761230631643,0.7874655,109600.0,109590.0,0.0245478]
[1761230632345,0.7874655,109600.0,109590.0,0.0467178]
[1761230632732,0.7874655,109600.0,109590.0,0.1608311]
[1761230632938,0.7767955,109600.0,109590.0,0.1608311]
[1761230635549,0.6855805,109600.0,109590.0,0.1608311]
[1761230636049,0.04489,109600.0,109590.0,0.35352339]
[1761230636245,0.04489,109600.0,109590.0,0.32897214]
[1761230636947,0.136105,109600.0,109590.0,0.16897214]
[1761230637255,0.136105,109600.0,109590.0,0.21897214]
[1761230637546,0.136105,109600.0,109590.0,0.87897214]
[1761230637547,0.001,109600.0,109590.0,0.87897214]
[1761230637744,0.04469,109630.0,109620.0,0.1355383]
[1761230637940,0.3587005,109630.0,109620.0,0.16824316]
[1761230638140,0.6852205,109630.0,109620.0,0.16824316]
[1761230638736,0.04469,109630.0,109620.0,0.34824316]
[1761230638943,0.04469,109630.0,109620.0,0.19275662]
[1761230639145,0.04569,109630.0,109620.0,0.35275662]
[1761230639347,0.04569,109630.0,109620.0,0.32005176]
[1761230640445,0.001,109630.0,109620.0,0.42275662]
[1761230640749,0.002,109630.0,109620.0,0.42275662]
[1761230640951,0.02414,109630.0,109620.0,0.42275662]
[1761230641139,0.1378799,109630.0,109620.0,0.19275662]
[1761230641338,0.1378799,109630.0,109610.0,0.466744]
[1761230641339,0.1133383,109620.0,109610.0,0.16987042]
[1761230641542,0.7763788,109620.0,109610.0,0.16987042]
[1761230641842,0.7891388,109620.0,109610.0,0.1126521]
[1761230642145,0.7891388,109620.0,109610.0,0.16005556]
[1761230642146,0.37117,109620.0,109610.0,0.16005556]
[1761230642361,0.37117,109620.0,109610.0,0.23005556]
[1761230642838,0.55846792,109620.0,109610.0,0.23005556]
[1761230643041,0.55946792,109630.0,109620.0,0.1355383]
[1761230643243,0.37217,109630.0,109620.0,0.2055383]
[1761230643643,0.37217,109630.0,109620.0,0.1355383]
[1761230643843,0.37217,109630.0,109620.0,0.23005176]
[1761230644548,0.37117,109630.0,109620.0,0.23005176]
[1761230644758,0.55946792,109630.0,109620.0,0.23005176]
[1761230645149,0.37217,109630.0,109620.0,0.21005176]
[1761230645360,0.37317,109630.0,109620.0,0.22005176]
[1761230645656,0.37317,109630.0,109620.0,0.23005176]
[1761230646449,0.37317,109630.0,109620.0,0.16005176]
[1761230646657,0.56046792,109630.0,109620.0,0.16005176]
[1761230646953,0.56046792,109630.0,109620.0,0.22005176]
[1761230647147,0.56046792,109630.0,109620.0,0.16005176]
[1761230647348,0.56046792,109630.0,109620.0,0.23005176]
[1761230647753,0.56046792,109630.0,109620.0,0.44005176]
[1761230647954,0.37317,109630.0,109620.0,0.28005176]
[1761230648253,0.37317,109630.0,109620.0,0.24005176]
[1761230649255,0.37313,109630.0,109620.0,0.16005176]
[1761230649657,0.04669,109630.0,109620.0,0.16005176]
[1761230649859,0.37313,109630.0,109620.0,0.16005176]
[1761230651056,0.56042792,109630.0,109620.0,0.17394176]
[1761230651450,0.37313,109630.0,109620.0,0.17394176]
[1761230651650,0.56042792,109630.0,109620.0,0.31394176]
[1761230652046,0.04669,109630.0,109620.0,0.31394176]
[1761230652274,0.37313,109630.0,109620.0,0.17394176]
[1761230652558,0.56042792,109630.0,109620.0,0.24394176]
[1761230653353,0.56042792,109630.0,109620.0,0.17394176]
[1761230654154,0.65161792,109630.0,109620.0,0.16005176]
[1761230654349,0.65161792,109630.0,109620.0,0.11571176]
[1761230654555,0.65161792,109630.0,109620.0,0.1355383]
[1761230654849,0.65161792,109630.0,109620.0,0.1494283]
[1761230655459,0.56042792,109630.0,109620.0,0.1494283]
[1761230655659,0.56042792,109630.0,109620.0,0.2194283]
[1761230655849,0.56042792,109630.0,109620.0,0.1494283]
[1761230656049,0.56042792,109630.0,109620.0,0.17394176]
[1761230656656,0.56042792,109630.0,109620.0,0.13716176]
[1761230656657,0.65161792,109630.0,109620.0,0.13716176]
[1761230657160,0.65161792,109630.0,109620.0,0.17394176]
[1761230657652,0.65161792,109630.0,109620.0,0.16005176]
[1761230657847,0.65161792,109630.0,109610.0,0.16230862]
[1761230658046,0.65161792,109630.0,109620.0,0.0911983]
[1761230658047,0.46432,109630.0,109620.0,0.0911983]
[1761230658651,0.37313,109630.0,109620.0,0.0911983]
[1761230658850,0.04669,109630.0,109620.0,0.1494283]
[1761230659056,0.04669,109630.0,109620.0,0.17394176]
[1761230659057,0.56038792,109630.0,109620.0,0.17394176]
[1761230659361,0.65157792,109630.0,109620.0,0.17394176]
[1761230659546,0.65057792,109630.0,109620.0,0.24394176]
[1761230659750,0.65157792,109630.0,109620.0,0.24394176]
[1761230660158,0.65157792,109630.0,109620.0,0.17394176]
[1761230660359,0.65057792,109630.0,109620.0,0.17394176]
[1761230660554,0.65157792,109630.0,109620.0,0.17394176]
[1761230661759,0.56038792,109630.0,109620.0,0.25394176]
[1761230662157,0.04669,109630.0,109620.0,0.49394176]
[1761230662351,0.37309,109630.0,109620.0,0.49394176]
[1761230662551,0.37309,109630.0,109620.0,0.25394176]
[1761230662751,0.56038792,109630.0,109620.0,0.24394176]
[1761230663460,0.56038792,109630.0,109620.0,0.26664662]
[1761230663953,0.56038792,109630.0,109620.0,0.20664662]
[1761230664156,0.3284,109630.0,109620.0,0.20664662]
[1761230664369,0.37369,109630.0,109620.0,0.26213316]
[1761230664551,0.37369,109630.0,109620.0,0.18213316]
[1761230664748,0.37369,109630.0,109620.0,0.25213316]
[1761230665262,0.37369,109630.0,109620.0,0.54119046]
[1761230665651,0.04729,109630.0,109620.0,0.54119046]
[1761230666656,0.002,109630.0,109620.0,0.54119046]
[1761230666853,0.02457,109630.0,109620.0,0.54119046]
[1761230667050,0.04689,109630.0,109620.0,0.34119046]
[1761230667265,0.04689,109630.0,109620.0,0.23119046]
[1761230667457,0.04689,109630.0,109620.0,0.2684856]
[1761230669363,0.23418792,109630.0,109620.0,0.2684856]
[1761230669863,0.23418792,109630.0,109620.0,0.1984856]
[1761230671865,0.32537792,109630.0,109620.0,0.23124505]
[1761230672059,0.32537792,109630.0,109620.0,0.17301505]
[1761230672260,0.34997029,109630.0,109620.0,0.14853038]
[1761230672559,0.34997029,109630.0,109620.0,0.20495038]
[1761230672560,0.25878029,109630.0,109620.0,0.20495038]
[1761230672761,0.19670294,109630.0,109620.0,0.28495038]
[1761230673165,0.52306294,109630.0,109620.0,0.28495038]
[1761230673358,0.63884531,109630.0,109620.0,0.20495038]
[1761230674266,0.78865825,109630.0,109620.0,0.20495038]
[1761230674466,0.54765531,109630.0,109620.0,0.20495038]
[1761230674666,0.54765531,109630.0,109620.0,0.36037775]
[1761230674667,0.52306294,109630.0,109620.0,0.36037775]
[1761230675361,0.52306294,109630.0,109620.0,0.40943505]
[1761230675760,0.52206294,109630.0,109620.0,0.3766756]
[1761230676760,0.52106294,109630.0,109620.0,0.3776756]
[1761230677660,0.14981294,109630.0,109620.0,0.52748854]
[1761230678065,0.14981294,109630.0,109620.0,0.3776756]
[1761230678268,0.19470294,109630.0,109620.0,0.3776756]
[1761230678763,0.34893,109640.0,109630.0,0.09119]
[1761230678970,0.34893,109640.0,109630.0,0.18036626]
[1761230678971,0.67087588,109640.0,109630.0,0.18036626]
[1761230680270,0.67087588,109640.0,109630.0,0.26036626]
[1761230681067,0.76205758,109640.0,109630.0,0.18641182]
[1761230681873,0.67087588,109640.0,109630.0,0.18641182]
[1761230682965,0.67087588,109640.0,109630.0,0.18741182]
[1761230683465,0.77272758,109640.0,109630.0,0.19900282]
[1761230683867,0.92254052,109640.0,109630.0,0.1495076]
[1761230684067,0.77272758,109640.0,109630.0,0.1495076]
[1761230684263,0.77272758,109640.0,109630.0,0.0583176]
[1761230684464,1.34715656,109640.0,109630.0,0.11675134]
[1761230684669,1.19734362,109640.0,109630.0,0.11376]
[1761230684973,1.19734362,109640.0,109630.0,0.16630535]
[1761230685371,1.19734362,109640.0,109630.0,0.16020134]
[1761230685668,0.47098362,109640.0,109630.0,0.11675134]
[1761230685866,0.79730362,109640.0,109630.0,0.11675134]
[1761230686064,0.94711656,109640.0,109630.0,0.02456134]
[1761230686266,0.13608,109630.0,109620.0,0.1485159]
[1761230686474,0.46032192,109630.0,109620.0,0.11575964]
[1761230687666,1.01013486,109630.0,109620.0,0.02456134]
[1761230687864,0.1488484,109620.0,109610.0,0.1485243]
[1761230688072,0.77475428,109620.0,109610.0,0.16539366]
[1761230688273,0.77475428,109620.0,109610.0,0.15921804]
[1761230688966,0.94918326,109620.0,109610.0,0.02456134]
[1761230689370,0.94918326,109620.0,109610.0,0.0922066]
[1761230689571,0.94918326,109620.0,109610.0,0.1137766]
[1761230689875,0.79937032,109620.0,109610.0,0.0922066]
[1761230690467,0.77475428,109620.0,109610.0,0.0922066]
[1761230691076,0.92456722,109620.0,109610.0,0.0922066]
[1761230691674,0.92456722,109620.0,109610.0,0.001]
[1761230692672,0.92456722,109620.0,109610.0,0.0922066]
[1761230694880,0.92456722,109620.0,109610.0,0.001]
[1761230696174,0.92456722,109620.0,109610.0,0.02263]
[1761230696763,0.77475428,109620.0,109610.0,0.1350967]
[1761230696967,0.77475428,109620.0,109610.0,0.1490767]
[1761230697679,0.77475428,109620.0,109610.0,0.1350967]
[1761230698584,0.77475428,109620.0,109610.0,0.1490767]
[1761230698880,0.76199428,109620.0,109610.0,0.1490767]
[1761230700979,0.91818722,109620.0,109610.0,0.001]
[1761230701484,0.76837428,109620.0,109610.0,0.1138366]
[1761230702383,0.76837428,109620.0,109610.0,0.001]
[1761230702684,0.76849554,109620.0,109610.0,0.001]
[1761230702887,0.76849554,109620.0,109610.0,0.02263]
[1761230703183,0.76849554,109620.0,109610.0,0.001]
[1761230703376,0.76849554,109620.0,109610.0,0.04389]
[1761230703572,0.76849554,109620.0,109610.0,0.2050966]
[1761230703777,0.28596197,109620.0,109610.0,0.2190766]
[1761230703979,0.4623684,109620.0,109610.0,0.4836124]
[1761230704185,0.19269357,109630.0,109620.0,0.1480683]
[1761230704485,0.51897357,109630.0,109620.0,0.4626041]
[1761230704681,0.51897357,109630.0,109620.0,0.3026041]
[1761230704890,0.28388357,109630.0,109620.0,0.25536036]
[1761230705488,0.19269357,109630.0,109620.0,0.25536036]
[1761230705993,0.19269357,109630.0,109620.0,0.50536036]
[1761230706189,0.51893357,109640.0,109630.0,0.14806]
[1761230706396,0.51893357,109640.0,109630.0,0.2925958]
[1761230706585,0.28387527,109640.0,109630.0,0.1725958]
[1761230706784,0.61011527,109640.0,109630.0,0.2225958]
[1761230706985,0.04282,109640.0,109630.0,0.2325958]
[1761230707185,0.61011527,109640.0,109630.0,0.2325958]
[1761230707699,0.28387277,109650.0,109640.0,0.1480517]
[1761230707998,0.75998634,109650.0,109640.0,0.2425875]
[1761230708185,0.75998634,109650.0,109640.0,0.1480517]
[1761230708389,0.36906,109650.0,109640.0,0.1480517]
[1761230708589,0.61010687,109650.0,109640.0,0.1725875]
[1761230708894,0.61010687,109650.0,109640.0,0.2425875]
[1761230709091,0.61010687,109650.0,109640.0,0.1725875]
[1761230709296,0.76636044,109650.0,109640.0,0.1586075]
[1761230709496,0.75998044,109650.0,109640.0,0.1725875]
[1761230709699,0.61010687,109650.0,109640.0,0.1725875]
[1761230711289,0.61010687,109650.0,109640.0,0.2425875]
[1761230711690,0.61010687,109650.0,109640.0,0.1725875]
[1761230711899,0.61010687,109650.0,109640.0,0.2525875]
[1761230712090,0.61010687,109650.0,109640.0,0.1725875]
[1761230713101,0.75998044,109650.0,109640.0,0.1725875]
[1761230713398,0.76636044,109650.0,109640.0,0.1157175]
[1761230713600,0.76636044,109650.0,109640.0,0.1586075]
[1761230713799,0.1446717,109640.0,109630.0,0.1725902]
[1761230714102,0.29454527,109640.0,109630.0,0.1157258]
[1761230714295,0.29454527,109640.0,109630.0,0.09119]
[1761230714606,0.19269357,109640.0,109630.0,0.19806]
[1761230714793,0.04282,109640.0,109630.0,0.3025958]
[1761230715099,0.19269357,109650.0,109640.0,0.1480516]
[1761230715293,0.51885357,109650.0,109640.0,0.2780516]
[1761230715692,0.62069687,109650.0,109640.0,0.1340716]
[1761230715892,0.77057044,109650.0,109640.0,0.1340716]
[1761230716894,1.09057044,109650.0,109630.0,0.0245358]
[1761230717099,0.0912066,109610.0,109600.0,0.06565079]
[1761230717398,0.0912066,109610.0,109580.0,0.00456267]
[1761230717399,0.0912233,109590.0,109580.0,0.00456267]
[1761230717597,0.0912399,109570.0,109560.0,0.05687]
[1761230717802,0.0912399,109570.0,109560.0,0.06298686]
[1761230718003,0.4234219,109590.0,109560.0,0.15423116]
[1761230718004,0.46956024,109590.0,109560.0,0.15423116]
[1761230718200,0.46956024,109590.0,109580.0,0.04289]
[1761230718201,0.04613494,109590.0,109580.0,0.04289]
[1761230718391,0.04613494,109590.0,109560.0,0.04172686]
[1761230718392,0.0912364,109580.0,109560.0,0.04172686]
[1761230718595,0.14987357,109590.0,109570.0,0.134128]
[1761230718790,0.37225494,109600.0,109590.0,0.04289]
[1761230718999,0.6402888,109600.0,109590.0,0.04289]
[1761230719193,0.02157521,109600.0,109590.0,0.1341133]
[1761230719393,0.7314959,109610.0,109600.0,0.05687]
[1761230719590,0.66186401,109610.0,109600.0,0.1480849]
[1761230719791,0.6402888,109610.0,109600.0,0.1980849]
[1761230719995,0.0373742,109630.0,109610.0,0.1340966]
[1761230719996,0.4101631,109630.0,109610.0,0.1340966]
[1761230720195,0.0048,109630.0,109620.0,0.1480683]
[1761230720400,0.0048,109630.0,109620.0,0.4480683]
[1761230720601,0.02156221,109650.0,109640.0,0.1480516]
[1761230720793,0.42985026,109660.0,109640.0,0.1480516]
[1761230721002,0.3141688,109650.0,109640.0,0.03561]
[1761230721200,0.3141688,109650.0,109640.0,0.05687]
[1761230721393,0.0911816,109640.0,109620.0,0.05687]
[1761230721598,0.7314788,109630.0,109620.0,0.01398]
[1761230721810,0.77755557,109630.0,109620.0,0.01398]
[1761230722006,0.68636557,109630.0,109620.0,0.05687]
[1761230722299,0.68636557,109630.0,109620.0,0.1980683]
[1761230722300,0.02256221,109630.0,109620.0,0.1980683]
[1761230722495,0.32712,109630.0,109620.0,0.1480683]
[1761230722691,0.001,109630.0,109620.0,0.1510683]
[1761230722902,0.001,109630.0,109620.0,0.4410683]
[1761230723099,0.3141688,109640.0,109630.0,0.13539]
[1761230723413,0.34768221,109650.0,109640.0,0.1491216]
[1761230723702,0.32612,109650.0,109640.0,0.1491216]
[1761230724408,0.45141467,109660.0,109640.0,0.1491216]
[1761230724608,0.32612,109650.0,109640.0,0.1491216]
[1761230724805,0.32612,109650.0,109640.0,0.05794]
[1761230725004,0.6402888,109650.0,109640.0,0.05794]
[1761230725204,0.75302431,109650.0,109640.0,0.1491217]
[1761230725712,0.75302431,109650.0,109640.0,0.05794]
[1761230725911,0.77753887,109650.0,109640.0,0.05794]
[1761230726205,0.77753887,109650.0,109640.0,0.01374]
[1761230726509,1.17953887,109650.0,109640.0,0.01374]
[1761230727095,0.09119,109630.0,109620.0,0.1263483]
[1761230727299,0.7314788,109630.0,109620.0,0.05764]
[1761230727602,0.77755617,109630.0,109620.0,0.05764]
[1761230728106,0.77755617,109630.0,109620.0,0.01398]
[1761230728107,1.17755617,109630.0,109620.0,0.01398]
[1761230728807,1.21013037,109630.0,109620.0,0.01398]
[1761230729001,1.21013037,109630.0,109620.0,0.01498]
[1761230730009,1.21013037,109630.0,109620.0,0.1273482]
[1761230730304,1.21013037,109630.0,109620.0,0.1498382]
[1761230730305,0.07865157,109630.0,109620.0,0.1498382]
[1761230730500,0.4543054,109640.0,109630.0,0.0911899]
[1761230730501,0.48400787,109640.0,109630.0,0.0911899]
[1761230730701,0.05708936,109640.0,109630.0,0.1348499]
[1761230730906,0.38320936,109640.0,109630.0,0.1348499]
[1761230731109,0.78855936,109640.0,109630.0,0.1348499]
[1761230731309,0.66185101,109640.0,109630.0,0.1348499]
[1761230732101,0.33573101,109640.0,109630.0,0.1348499]
[1761230732302,0.6412888,109640.0,109630.0,0.1348499]
[1761230732502,0.66285101,109640.0,109630.0,0.1348499]
[1761230733109,0.33673101,109640.0,109630.0,0.1348499]
[1761230733304,0.6412888,109640.0,109630.0,0.1348499]
[1761230733512,0.75403191,109640.0,109630.0,0.1348499]
[1761230734106,0.34868221,109640.0,109630.0,0.3948499]
[1761230734311,0.04607737,109650.0,109640.0,0.1483609]
[1761230734506,0.46242536,109660.0,109650.0,0.04366]
[1761230734712,0.75597116,109660.0,109650.0,0.04366]
[1761230734912,0.77753337,109660.0,109650.0,0.04366]
[1761230735109,0.45141337,109660.0,109650.0,0.04366]
[1761230735413,0.75597116,109660.0,109650.0,0.04366]
[1761230735615,0.77753337,109660.0,109650.0,0.04366]
[1761230735817,0.37219737,109660.0,109650.0,0.04366]
[1761230736006,0.002,109660.0,109650.0,0.1348326]
[1761230736309,0.32812,109660.0,109650.0,0.1348326]
[1761230736610,0.6422888,109660.0,109650.0,0.1348326]
[1761230736814,0.66385101,109660.0,109650.0,0.1348326]
[1761230737108,0.75501531,109660.0,109650.0,0.04366]
[1761230737305,0.75601531,109660.0,109650.0,0.04971257]
[1761230737507,0.66485101,109660.0,109650.0,0.14088517]
[1761230738208,0.75601521,109660.0,109640.0,0.148357]
[1761230738410,0.3141688,109650.0,109640.0,0.148357]
[1761230738709,0.4053413,109650.0,109640.0,0.05718]
[1761230739099,0.4053413,109650.0,109640.0,0.1483608]
[1761230739311,0.3141688,109650.0,109640.0,0.1483608]
[1761230739512,0.3141688,109650.0,109640.0,0.4383608]
[1761230739705,0.43284816,109660.0,109650.0,0.1348325]
[1761230740008,0.75597521,109660.0,109650.0,0.1348325]
[1761230740408,0.78049037,109660.0,109650.0,0.1348325]
[1761230740815,0.02356221,109660.0,109650.0,0.1348325]
[1761230741115,0.32808,109660.0,109650.0,0.3848325]
[1761230741410,0.6422488,109660.0,109650.0,0.1348325]
[1761230741603,0.75497521,109660.0,109650.0,0.04366]
[1761230742514,0.0911725,109650.0,109640.0,0.1483597]
[1761230742715,0.4053413,109650.0,109640.0,0.1483597]
[1761230742911,0.4053413,109650.0,109640.0,0.05718]
[1761230743408,0.42984985,109650.0,109640.0,0.01352]
[1761230743715,0.0911892,109630.0,109620.0,0.01398]
[1761230744007,0.75591162,109630.0,109600.0,0.1051863]
[1761230744213,0.4053746,109610.0,109600.0,0.05764]
[1761230744405,0.7314146,109610.0,109600.0,0.05764]
[1761230744606,0.75482977,109610.0,109600.0,0.05764]
[1761230745211,0.66362397,109610.0,109600.0,0.1488541]
[1761230745714,0.75482977,109610.0,109600.0,0.05764]
[1761230746415,0.77934339,109610.0,109600.0,0.05764]
[1761230746814,0.68813759,109610.0,109600.0,0.06164]
[1761230747210,0.34949517,109610.0,109600.0,0.1528541]
[1761230747411,0.32608,109610.0,109600.0,0.1528541]
[1761230748013,0.45329949,109620.0,109600.0,0.1528541]
[1761230748212,0.42988432,109620.0,109600.0,0.1528541]
[1761230748515,0.32608,109610.0,109600.0,0.1528541]
[1761230748914,0.36209759,109620.0,109610.0,0.1348658]
[1761230749115,0.7314463,109620.0,109610.0,0.1348658]
[1761230749308,0.77937509,109620.0,109610.0,0.1348658]
[1761230750117,0.68817759,109620.0,109610.0,0.1348658]
[1761230750417,0.66366397,109620.0,109610.0,0.1348658]
[1761230750619,0.02341517,109620.0,109610.0,0.1348658]
[1761230750819,0.32608,109620.0,109610.0,0.1358658]
[1761230751111,0.45329419,109630.0,109620.0,0.1483775]
[1761230751112,0.02316968,109630.0,109620.0,0.1483775]
[1761230751313,0.4172691,109630.0,109620.0,0.1483775]
[1761230751505,0.32608,109630.0,109620.0,0.1483775]
[1761230751709,0.7314379,109630.0,109620.0,0.1483775]
[1761230751909,0.75460758,109630.0,109620.0,0.1483775]
[1761230752308,0.3492473,109630.0,109620.0,0.4283775]
[1761230752510,0.48571995,109640.0,109630.0,0.1348492]
[1761230752718,0.78867265,109640.0,109630.0,0.1348492]
[1761230752918,0.81183995,109640.0,109630.0,0.04366]
[1761230753122,0.77915513,109640.0,109630.0,0.04366]
[1761230754014,0.77915513,109640.0,109630.0,0.1348491]
[1761230754414,0.78015513,109640.0,109630.0,0.1348491]
[1761230754821,0.78011513,109640.0,109630.0,0.1348491]
[1761230755020,0.04867893,109640.0,109630.0,0.43107293]
[1761230755213,0.001,109640.0,109630.0,0.54107293]
[1761230755414,0.001,109640.0,109630.0,0.84107293]
[1761230755815,0.002,109640.0,109630.0,0.84107293]
[1761230756322,0.001,109640.0,109630.0,0.84107293]
[1761230756723,0.32608,109650.0,109640.0,0.1487608]
[1761230757327,0.32608,109650.0,109640.0,0.3987608]
[1761230757527,0.32608,109650.0,109640.0,0.1487608]
[1761230757728,0.32608,109650.0,109640.0,0.3887608]
[1761230757921,0.32608,109650.0,109640.0,0.4387608]
[1761230758121,0.32708,109650.0,109640.0,0.4387608]
[1761230758321,0.32708,109650.0,109640.0,0.1487608]
[1761230758525,0.001,109650.0,109640.0,0.4787608]
[1761230758729,0.001,109650.0,109640.0,0.1987608]
[1761230759028,0.001,109650.0,109640.0,0.4287608]
[1761230759328,0.002,109650.0,109640.0,0.3887608]
[1761230759924,0.002,109650.0,109640.0,0.1487608]
[1761230760124,0.002,109650.0,109640.0,0.4187608]
[1761230760323,0.002,109650.0,109640.0,0.1487608]
[1761230760528,0.002,109650.0,109640.0,0.7887608]
[1761230760722,0.02930394,109670.0,109660.0,0.1487442]
[1761230760921,0.0048,109670.0,109660.0,0.1487442]
[1761230761230,0.0048,109670.0,109660.0,0.4287442]
[1761230761522,0.0048,109670.0,109660.0,0.8287442]
[1761230761722,0.02450394,109690.0,109680.0,0.1487276]
[1761230762029,0.19906394,109690.0,109680.0,0.1487276]
[1761230762226,0.2656993,109690.0,109680.0,0.15475388]
[1761230762528,0.5798681,109690.0,109680.0,0.15475388]
[1761230762722,0.51188795,109690.0,109680.0,0.42475388]
[1761230763027,0.17456,109690.0,109680.0,0.15475388]
[1761230763230,0.43459974,109710.0,109700.0,0.05758]
[1761230763527,0.76063974,109710.0,109700.0,0.148711]
[1761230763729,0.78377839,109710.0,109700.0,0.05758]
[1761230764330,0.78377839,109710.0,109700.0,0.148711]
[1761230764628,0.37848259,109710.0,109700.0,0.148711]
[1761230764824,0.21631257,109710.0,109700.0,0.148711]
[1761230765028,0.0048,109710.0,109700.0,0.818711]
[1761230765227,0.0048,109710.0,109700.0,0.798711]
[1761230765428,0.0048,109710.0,109700.0,0.548711]
[1761230765629,0.19180863,109710.0,109700.0,0.148711]
[1761230765829,0.19680863,109710.0,109700.0,0.148711]
[1761230766029,0.61593133,109710.0,109700.0,0.148711]
[1761230766328,0.63906998,109710.0,109700.0,0.148711]
[1761230766628,0.63906998,109710.0,109700.0,0.05758]
[1761230767033,1.03906998,109710.0,109700.0,0.01345]
[1761230767436,0.0911394,109690.0,109680.0,0.03572]
[1761230767731,0.60410803,109690.0,109680.0,0.03572]
[1761230767920,0.62724668,109690.0,109680.0,0.03572]
[1761230768429,0.62724668,109690.0,109680.0,0.04185915]
[1761230768632,0.44023805,109690.0,109680.0,0.15486685]
[1761230768827,0.63024668,109690.0,109680.0,0.15486685]
[1761230769733,0.53910728,109690.0,109680.0,0.15486685]
[1761230769926,0.63224658,109690.0,109680.0,0.15486685]
[1761230770236,0.63224658,109690.0,109680.0,0.06371915]
[1761230770425,0.63224658,109690.0,109680.0,0.01345]
[1761230770731,0.63224658,109690.0,109680.0,0.03572]
[1761230770931,0.63224658,109690.0,109680.0,0.05758]
[1761230771431,0.63224658,109690.0,109680.0,0.15486237]
[1761230771630,0.63224658,109690.0,109680.0,0.1487276]
[1761230772231,0.63224658,109690.0,109680.0,0.05758]
[1761230772636,0.63224658,109690.0,109680.0,0.01345]
[1761230773024,0.63224658,109690.0,109680.0,0.03572]
[1761230773733,0.63224658,109690.0,109680.0,0.1487276]
[1761230773929,0.21514728,109690.0,109680.0,0.1487276]
[1761230774119,0.33092,109690.0,109680.0,0.1487276]
[1761230774524,0.005,109690.0,109680.0,0.1487276]
[1761230774725,0.33092,109690.0,109680.0,0.1487276]
[1761230775127,0.33092,109690.0,109680.0,0.3987276]
[1761230775327,0.005,109690.0,109680.0,0.3987276]
[1761230775529,0.005,109690.0,109680.0,0.1487276]
[1761230775824,0.4220593,109690.0,109680.0,0.1487276]
[1761230776220,0.60906793,109690.0,109680.0,0.1487276]
[1761230776624,0.63213197,109690.0,109680.0,0.1487276]
[1761230777727,0.63213197,109690.0,109680.0,0.01345]
[1761230778327,0.63213197,109690.0,109680.0,0.03572]
[1761230779035,0.65663591,109690.0,109680.0,0.01345]
[1761230779438,0.65663591,109690.0,109680.0,0.1268677]
[1761230779830,0.65663591,109690.0,109680.0,0.03572]
[1761230780430,0.65663591,109690.0,109680.0,0.1487276]
[1761230781034,0.05256798,109690.0,109680.0,0.1487276]
[1761230781239,0.51788863,109690.0,109680.0,0.1487276]
[1761230781436,0.56545661,109690.0,109680.0,0.1268676]
[1761230781739,0.23957661,109690.0,109680.0,0.1487276]
[1761230781938,0.54239257,109690.0,109680.0,0.1487276]
[1761230782139,0.56545661,109690.0,109680.0,0.1487276]